fUSD/lending_fUSD_20240708
["ID","MTS","AMOUNT","RATE_DAILY","PERIOD"]
[331451106,1720424432594,-500.0,0.00034038,34]
[331451107,1720424432635,-503.82216285,0.00034038,30]
[331451108,1720424432674,-500.0,0.00034038,35]
[331451109,1720424432713,-500.0,0.00034038,36]
[331451110,1720424432752,-500.0,0.00034038,37]
[331451111,1720424432796,-500.0,0.00034038,38]
[331451112,1720424432834,-500.0,0.00034038,39]
[331451113,1720424432873,-350.36069491,0.00034038,40]
[331451114,1720424432910,-504.91717708,0.00034038,30]
[331451115,1720424432950,-500.0,0.00034038,30]
[331451116,1720424432986,-500.0,0.00034038,31]
[331451117,1720424433028,-500.0,0.00034038,32]
[331451118,1720424433067,-500.0,0.00034038,33]
[331451119,1720424433103,-509.89010309,0.00034038,34]
[331451120,1720424433141,-500.0,0.00034038,30]
[331451121,1720424433178,-500.0,0.00034038,30]
[331451122,1720424433214,-500.0,0.00034038,31]
[331451123,1720424433250,-500.0,0.00034038,32]
[331451124,1720424433287,-500.0,0.00034038,33]
[331451125,1720424433326,-536.66871726,0.00034038,34]
[331451126,1720424433362,-508.28435678,0.00034038,31]
[331451127,1720424433398,-500.0,0.00034038,30]
[331451128,1720424433436,-500.0,0.00034038,31]
[331451129,1720424433472,-500.0,0.00034038,32]
[331451130,1720424433509,-500.0,0.00034038,33]
[331451131,1720424433547,-513.54212888,0.00034038,34]
[331451132,1720424433585,-500.0,0.00034038,30]
[331451133,1720424433620,-500.0,0.00034038,31]
[331451134,1720424433654,-500.0,0.00034038,32]
[331451135,1720424433688,-500.0,0.00034038,33]
[331451136,1720424433724,-590.9478758,0.00034038,34]
[331451137,1720424433761,-500.0,0.00034038,30]
[331451138,1720424433805,-500.0,0.00034038,31]
[331451139,1720424433840,-500.0,0.00034038,32]
[331451140,1720424433881,-505.67777499,0.00034038,33]
[331451141,1720424433919,-500.0,0.00034038,30]
[331451142,1720424433956,-500.0,0.00034038,31]
[331451143,1720424433992,-500.0,0.00034038,32]
[331451144,1720424434029,-500.0,0.00034038,33]
[331451145,1720424434065,-500.0,0.00034038,34]
[331451146,1720424434101,-497.03133282,0.00034038,35]
[331451147,1720424434139,-500.0,0.00034038,30]
[331451148,1720424434179,-215.27383952,0.00034038,31]
[331451149,1720424434216,-511.28077079,0.00034038,30]
[331451150,1720424434253,-500.0,0.00034038,30]
[331451151,1720424434289,-438.35084369,0.00034038,31]
[331451152,1720424434327,-500.0,0.00034038,30]
[331451153,1720424434362,-500.0,0.00034038,31]
[331451154,1720424434397,-500.0,0.00034038,32]
[331451155,1720424434432,-500.0,0.00034038,33]
[331451156,1720424434468,-500.0,0.00034038,34]
[331451157,1720424434503,-500.0,0.00034038,30]
[331451158,1720424434537,-216.50776387,0.00034038,35]
[331451159,1720424434574,-500.0,0.00034038,31]
[331451160,1720424434610,-607.96371287,0.00034038,32]
[331451161,1720424434645,-500.0,0.00034038,30]
[331451162,1720424434680,-500.0,0.00034038,31]
[331451163,1720424434717,-500.0,0.00034038,32]
[331451164,1720424434753,-500.0,0.00034038,33]
[331451165,1720424434792,-500.0,0.00034038,34]
[331451166,1720424434831,-500.0,0.00034038,35]
[331451167,1720424434871,-500.0,0.00034038,36]
[331451168,1720424434910,-500.0,0.00034038,37]
[331451169,1720424434948,-500.0,0.00034038,38]
[331451170,1720424434987,-500.0,0.00034038,39]
[331451171,1720424435026,-511.15222278,0.00034038,40]
[331451172,1720424435064,-501.99949235,0.00034038,30]
[331451173,1720424435101,-500.0,0.00034038,30]
[331451174,1720424435426,-500.0,0.00034038,31]
[331451175,1720424435466,-500.0,0.00034038,32]
[331451176,1720424435506,-500.0,0.00034038,33]
[331451177,1720424435545,-360.62738777,0.00034038,34]
[331451178,1720424435583,-260.19233417,0.00034038,30]
[331451179,1720424435621,-500.0,0.00034038,30]
[331451180,1720424435658,-375.38599464,0.00034038,31]
[331451181,1720424435694,-500.0,0.00034038,30]
[331451182,1720424435733,-505.86469082,0.00034038,31]
[331451183,1720424435772,-500.0,0.00034038,30]
[331451184,1720424435812,-500.0,0.00034038,31]
[331451185,1720424435853,-500.0,0.00034038,32]
[331451186,1720424435893,-500.0,0.00034038,33]
[331451187,1720424435930,-500.0,0.00034038,34]
[331451188,1720424435968,-500.0,0.00034038,35]
[331451189,1720424436007,-500.0,0.00034038,36]
[331451190,1720424436045,-500.0,0.00034038,37]
[331451191,1720424436081,-500.0,0.00034038,30]
[331451192,1720424436117,-500.0,0.00034038,31]
[331451193,1720424436154,-500.0,0.00034038,32]
[331451194,1720424436191,-500.0,0.00034038,33]
[331451195,1720424436226,-500.0,0.00034038,34]
[331451196,1720424436261,-500.0,0.00034038,35]
[331451197,1720424436295,-500.0,0.00034038,30]
[331451198,1720424436331,-500.0,0.00034038,31]
[331451199,1720424436366,-502.20330146,0.00034038,32]
[331451200,1720424436403,-500.0,0.00034038,30]
[331451201,1720424436439,-500.0,0.00034038,31]
[331451202,1720424436476,-500.0,0.00034038,32]
[331451203,1720424436515,-500.0,0.00034038,30]
[331451204,1720424436552,-500.0,0.00034038,31]
[331451205,1720424436589,-500.0,0.00034038,32]
[331451206,1720424436625,-368.80991616,0.00034038,33]
[331451207,1720424436662,-500.0,0.00034038,33]
[331451208,1720424436697,-500.0,0.00034038,34]
[331451209,1720424436732,-500.0,0.00034038,35]
[331451210,1720424436770,-500.0,0.00034038,36]
[331451211,1720424436807,-238.53473888,0.00034038,37]
[331451212,1720424436844,-500.0,0.00034038,30]
[331451213,1720424436884,-558.96864981,0.00034038,31]
[331451214,1720424436922,-500.0,0.00034038,30]
[331451215,1720424436962,-500.0,0.00034038,31]
[331451216,1720424437002,-500.0,0.00034038,32]
[331451217,1720424437042,-169.99511175,0.00034038,33]
[331451218,1720424437082,-500.0,0.00034038,30]
[331451219,1720424437123,-500.0,0.00034038,31]
[331451220,1720424437161,-500.0,0.00034038,32]
[331451221,1720424437201,-500.0,0.00034038,33]
[331451222,1720424437240,-500.0,0.00034038,34]
[331451223,1720424437280,-500.0,0.00034038,35]
[331451224,1720424437319,-500.0,0.00034038,36]
[331451225,1720424437357,-500.0,0.00034038,30]
[331451226,1720424437394,-500.0,0.00034038,37]
[331451227,1720424437431,-505.81542667,0.00034038,31]
[331451228,1720424437469,-500.0,0.00034038,38]
[331451229,1720424437506,-500.0,0.00034038,39]
[331451230,1720424437543,-500.0,0.00034038,40]
[331451231,1720424437579,-500.0,0.00034038,30]
[331451232,1720424437620,-500.0,0.00034038,31]
[331451233,1720424437658,-500.0,0.00034038,32]
[331451234,1720424437695,-509.95013974,0.00034038,33]
[331451235,1720424437735,-500.0,0.00034038,30]
[331451236,1720424437776,-500.0,0.00034038,31]
[331451237,1720424437814,-500.0,0.00034038,30]
[331451238,1720424437851,-500.0,0.00034038,32]
[331451239,1720424437889,-500.0,0.00034038,31]
[331451240,1720424437927,-500.0,0.00034038,33]
[331451241,1720424437965,-500.0,0.00034038,32]
[331451242,1720424438003,-500.0,0.00034038,33]
[331451243,1720424438041,-500.0,0.00034038,34]
[331451244,1720424438080,-500.0,0.00034038,34]
[331451245,1720424438118,-611.60953227,0.00034038,35]
[331451246,1720424438157,-500.0,0.00034038,35]
[331451247,1720424438197,-252.21246475,0.00034038,36]
[331451248,1720424438237,-174.27789048,0.00034038,30]
[331451249,1720424438275,-500.6588123,0.00034038,30]
[331451250,1720424438314,-500.0,0.00034038,30]
[331451251,1720424438353,-500.0,0.00034038,31]
[331451252,1720424438394,-500.0,0.00034038,32]
[331451253,1720424438433,-500.0,0.00034038,33]
[331451254,1720424438474,-500.0,0.00034038,34]
[331451255,1720424438517,-500.0,0.00034038,35]
[331451256,1720424438559,-500.0,0.00034038,36]
[331451257,1720424438599,-500.0,0.00034038,37]
[331451258,1720424438637,-500.0,0.00034038,38]
[331451259,1720424438678,-500.0,0.00034038,39]
[331451260,1720424438718,-500.0,0.00034038,40]
[331451261,1720424438757,-501.65781715,0.00034038,41]
[331451262,1720424438804,-565.7945757,0.00034038,30]
[331451263,1720424438841,-500.0,0.00034038,30]
[331451264,1720424438887,-500.0,0.00034038,31]
[331451265,1720424438928,-500.0,0.00034038,32]
[331451266,1720424438969,-500.0,0.00034038,33]
[331451267,1720424439008,-500.0,0.00034038,34]
[331451268,1720424439055,-500.0,0.00034038,35]
[331451269,1720424439099,-500.0,0.00034038,36]
[331451270,1720424439143,-500.0,0.00034038,37]
[331451271,1720424439184,-500.0,0.00034038,38]
[331451272,1720424439227,-465.53772105,0.00034038,39]
[331451273,1720424439267,-500.0,0.00034038,30]
[331451274,1720424439309,-500.0,0.00034038,31]
[331451275,1720424439349,-500.0,0.00034038,32]
[331451276,1720424439393,-500.0,0.00034038,33]
[331451277,1720424439436,-502.18389273,0.00034038,34]
[331451278,1720424439720,-500.0,0.00034038,30]
[331451279,1720424439763,-500.0,0.00034038,31]
[331451280,1720424439808,-515.49688672,0.00034038,32]
[331451281,1720424439852,-577.46821144,0.00034038,30]
[331451282,1720424439896,-500.0,0.00034038,30]
[331451283,1720424439938,-500.0,0.00034038,30]
[331451284,1720424439979,-500.0,0.00034038,31]
[331451285,1720424440019,-500.0,0.00034038,32]
[331451286,1720424440059,-500.0,0.00034038,33]
[331451287,1720424440100,-500.0,0.00034038,34]
[331451288,1720424440140,-500.0,0.00034038,35]
[331451289,1720424440181,-500.0,0.00034038,36]
[331451290,1720424440220,-500.0,0.00034038,37]
[331451291,1720424440260,-500.0,0.00034038,38]
[331451292,1720424440301,-500.0,0.00034038,39]
[331451293,1720424440343,-500.0,0.00034038,40]
[331451294,1720424440383,-500.0,0.00034038,41]
[331451295,1720424440423,-500.0,0.00034038,42]
[331451296,1720424440460,-500.14385161,0.00034038,30]
[331451297,1720424440500,-500.0,0.00034038,30]
[331451298,1720424440538,-500.0,0.00034038,31]
[331451299,1720424440574,-500.0,0.00034038,32]
[331451300,1720424440610,-500.0,0.00034038,33]
[331451301,1720424440648,-500.0,0.00034038,34]
[331451302,1720424440686,-500.0,0.00034038,35]
[331451303,1720424440724,-510.85596457,0.00034038,36]
[331451304,1720424440763,-500.0,0.00034038,30]
[331451305,1720424440806,-500.0,0.00034038,31]
[331451306,1720424440845,-500.0,0.00034038,32]
[331451307,1720424440882,-500.0,0.00034038,30]
[331451308,1720424440919,-433.63563803,0.00034038,31]
[331451309,1720424440956,-500.0,0.00034038,33]
[331451310,1720424440992,-500.0,0.00034038,34]
[331451311,1720424441032,-500.0,0.00034038,35]
[331451312,1720424441070,-500.0,0.00034038,36]
[331451313,1720424441107,-500.0,0.00034038,37]
[331451314,1720424441144,-500.0,0.00034038,38]
[331451315,1720424441183,-500.0,0.00034038,39]
[331451316,1720424441221,-500.0,0.00034038,40]
[331451317,1720424441259,-500.0,0.00034038,41]
[331451318,1720424441295,-500.0,0.00034038,42]
[331451319,1720424441331,-500.0,0.00034038,43]
[331451320,1720424441365,-500.0,0.00034038,44]
[331451321,1720424441400,-320.91888286,0.00034038,45]
[331451322,1720424441436,-500.0,0.00034038,30]
[331451323,1720424441471,-500.0,0.00034038,31]
[331451324,1720424441505,-500.0,0.00034038,32]
[331451325,1720424441540,-500.0,0.00034038,33]
[331451326,1720424441576,-500.0,0.00034038,30]
[331451327,1720424441611,-502.4297416,0.00034038,31]
[331451328,1720424441646,-500.0,0.00034038,34]
[331451329,1720424441682,-504.59939546,0.00034038,35]
[331451330,1720424441717,-681.95,0.00034038,30]
[331451331,1720424441754,-681.95,0.00034038,31]
[331451332,1720424441790,-681.95,0.00034038,32]
[331451333,1720424441828,-681.95,0.00034038,33]
[331451334,1720424441864,-681.95,0.00034038,34]
[331451335,1720424441899,-681.95,0.00034038,35]
[331451336,1720424441935,-681.95,0.00034038,36]
[331451337,1720424441970,-500.0,0.00034038,30]
[331451338,1720424442011,-681.95,0.00034038,37]
[331451339,1720424442049,-500.0,0.00034038,31]
[331451340,1720424442086,-681.95,0.00034038,38]
[331451341,1720424442120,-500.0,0.00034038,32]
[331451342,1720424442155,-681.95,0.00034038,39]
[331451343,1720424442191,-681.95,0.00034038,40]
[331451344,1720424442226,-500.0,0.00034038,33]
[331451345,1720424442261,-500.0,0.00034038,34]
[331451346,1720424442298,-681.95,0.00034038,41]
[331451347,1720424442335,-500.0,0.00034038,35]
[331451348,1720424442370,-681.95,0.00034038,42]
[331451349,1720424442407,-500.0,0.00034038,36]
[331451350,1720424442443,-681.95,0.00034038,43]
[331451351,1720424442481,-500.0,0.00034038,37]
[331451352,1720424442516,-681.95,0.00034038,44]
[331451353,1720424442552,-500.0,0.00034038,38]
[331451354,1720424442587,-681.95,0.00034038,45]
[331451355,1720424442622,-500.0,0.00034038,39]
[331451356,1720424442658,-681.95,0.00034038,46]
[331451357,1720424442692,-500.0,0.00034038,40]
[331451358,1720424442726,-681.95,0.00034038,47]
[331451359,1720424442760,-491.24694429,0.00034038,41]
[331451360,1720424442802,-681.95,0.00034038,48]
[331451361,1720424442837,-681.95,0.00034038,49]
[331451362,1720424442873,-681.95,0.00034038,50]
[331451363,1720424442908,-681.95,0.00034038,51]
[331451364,1720424442945,-681.95,0.00034038,52]
[331451365,1720424442981,-682.15,0.00034038,53]
[331451366,1720424443018,-500.0,0.00034038,30]
[331451367,1720424443055,-500.0,0.00034038,31]
[331451368,1720424443092,-507.56478744,0.00034038,32]
[331451369,1720424443129,-500.0,0.00034038,30]
[331451370,1720424443166,-500.0,0.00034038,31]
[331451371,1720424443203,-500.0,0.00034038,32]
[331451372,1720424443237,-500.0,0.00034038,33]
[331451373,1720424443282,-500.0,0.00034038,34]
[331451374,1720424443320,-500.0,0.00034038,35]
[331451375,1720424443358,-500.0,0.00034038,36]
[331451376,1720424443395,-577.57932413,0.00034038,37]
[331451377,1720424443431,-500.0,0.00034038,30]
[331451378,1720424443467,-500.0,0.00034038,31]
[331451379,1720424443508,-562.83664629,0.00034038,32]
[331451380,1720424443549,-500.0,0.00034038,30]
[331451381,1720424443589,-500.0,0.00034038,31]
[331451382,1720424443842,-500.0,0.00034038,32]
[331451383,1720424443884,-500.0,0.00034038,33]
[331451384,1720424443923,-500.0,0.00034038,34]
[331451385,1720424443960,-500.0,0.00034038,35]
[331451386,1720424443997,-500.0,0.00034038,36]
[331451387,1720424444040,-500.0,0.00034038,30]
[331451388,1720424444082,-500.0,0.00034038,37]
[331451389,1720424444126,-500.0,0.00034038,31]
[331451390,1720424444168,-500.0,0.00034038,38]
[331451391,1720424444211,-505.02090263,0.00034038,32]
[331451392,1720424444255,-500.0,0.00034038,30]
[331451393,1720424444293,-500.0,0.00034038,31]
[331451394,1720424444332,-541.04926175,0.00034038,32]
[331451395,1720424444370,-500.0,0.00034038,39]
[331451396,1720424444406,-500.0,0.00034038,40]
[331451397,1720424444444,-500.0,0.00034038,41]
[331451398,1720424444480,-500.0,0.00034038,42]
[331451399,1720424444515,-500.0,0.00034038,43]
[331451400,1720424444551,-500.0,0.00034038,44]
[331451401,1720424444588,-500.0,0.00034038,45]
[331451402,1720424444625,-500.0,0.00034038,46]
[331451403,1720424444662,-382.74647423,0.00034038,47]
[331451404,1720424444700,-502.38381805,0.00034038,30]
[331451405,1720424444736,-2590.86,0.00034038,30]
[331451406,1720424444776,-2590.86,0.00034038,31]
[331451407,1720424444813,-2590.86,0.00034038,32]
[331451408,1720424444857,-2590.86,0.00034038,33]
[331451409,1720424444895,-2590.86,0.00034038,34]
[331451410,1720424444934,-2590.86,0.00034038,35]
[331451411,1720424444972,-2590.86,0.00034038,36]
[331451412,1720424445009,-2590.86,0.00034038,37]
[331451413,1720424445046,-2590.86,0.00034038,38]
[331451414,1720424445085,-2590.86,0.00034038,39]
[331451415,1720424445125,-501.45842,0.00034038,30]
[331451416,1720424445164,-2590.86,0.00034038,40]
[331451417,1720424445202,-2590.86,0.00034038,41]
[331451418,1720424445241,-2590.86,0.00034038,42]
[331451419,1720424445282,-2590.86,0.00034038,43]
[331451420,1720424445321,-2590.86,0.00034038,44]
[331451421,1720424445360,-500.0,0.00034038,30]
[331451422,1720424445400,-2590.86,0.00034038,45]
[331451423,1720424445438,-2590.86,0.00034038,46]
[331451424,1720424445476,-2590.86,0.00034038,47]
[331451425,1720424445514,-2590.86,0.00034038,48]
[331451426,1720424445552,-2590.86,0.00034038,49]
[331451427,1720424445592,-2590.86,0.00034038,50]
[331451428,1720424445630,-2590.86,0.00034038,51]
[331451429,1720424445667,-2590.86,0.00034038,52]
[331451430,1720424445706,-2590.99301942,0.00034038,53]
[331451431,1720424445743,-501.56115925,0.00034038,30]
[331451432,1720424445788,-500.0,0.00034038,30]
[331451433,1720424445827,-500.0,0.00034038,31]
[331451434,1720424445865,-500.0,0.00034038,32]
[331451435,1720424445903,-500.0,0.00034038,33]
[331451436,1720424445940,-500.0,0.00034038,34]
[331451437,1720424445978,-500.0,0.00034038,35]
[331451438,1720424446017,-181.87501746,0.00034038,36]
[331451439,1720424446054,-504.11105323,0.00034038,30]
[331451440,1720424446093,-500.0,0.00034038,30]
[331451441,1720424446130,-500.0,0.00034038,31]
[331451442,1720424446165,-500.0,0.00034038,30]
[331451443,1720424446202,-500.0,0.00034038,32]
[331451444,1720424446237,-1664.25,0.00034038,30]
[331451445,1720424446273,-500.0,0.00034038,31]
[331451446,1720424446307,-500.0,0.00034038,33]
[331451447,1720424446342,-506.66387781,0.00034038,32]
[331451448,1720424446377,-500.0,0.00034038,34]
[331451449,1720424446413,-1664.25,0.00034038,31]
[331451450,1720424446447,-1664.25,0.00034038,32]
[331451451,1720424446482,-500.0,0.00034038,35]
[331451452,1720424446520,-1664.25,0.00034038,33]
[331451453,1720424446556,-1664.25,0.00034038,34]
[331451454,1720424446593,-500.0,0.00034038,36]
[331451455,1720424446629,-1664.25,0.00034038,35]
[331451456,1720424446665,-584.75084106,0.00034038,37]
[331451457,1720424446701,-1664.25,0.00034038,36]
[331451458,1720424446738,-1664.25,0.00034038,37]
[331451459,1720424446779,-1664.25,0.00034038,38]
[331451460,1720424446818,-1664.25,0.00034038,39]
[331451461,1720424446858,-1664.25,0.00034038,40]
[331451462,1720424446898,-1664.25,0.00034038,41]
[331451463,1720424446938,-1664.25,0.00034038,42]
[331451464,1720424446975,-1664.25,0.00034038,43]
[331451465,1720424447014,-1664.25,0.00034038,44]
[331451466,1720424447053,-1664.25,0.00034038,45]
[331451467,1720424447095,-500.0,0.00034038,30]
[331451468,1720424447138,-500.0,0.00034038,31]
[331451469,1720424447179,-500.0,0.00034038,32]
[331451470,1720424447221,-500.0,0.00034038,33]
[331451471,1720424447263,-888.95,0.00034038,30]
[331451472,1720424447303,-888.95,0.00034038,31]
[331451473,1720424447343,-1664.25,0.00034038,46]
[331451474,1720424447383,-888.95,0.00034038,32]
[331451475,1720424447423,-1664.25,0.00034038,47]
[331451476,1720424447464,-888.95,0.00034038,33]
[331451477,1720424447505,-1664.25,0.00034038,48]
[331451478,1720424447548,-888.95,0.00034038,34]
[331451479,1720424447591,-1664.25,0.00034038,49]
[331451480,1720424447634,-1664.25,0.00034038,50]
[331451481,1720424447674,-888.95,0.00034038,35]
[331451482,1720424447713,-1664.25,0.00034038,51]
[331451483,1720424447752,-888.95,0.00034038,36]
[331451484,1720424447794,-1664.25,0.00034038,52]
[331451485,1720424448071,-888.95,0.00034038,37]
[331451486,1720424448112,-1664.35560692,0.00034038,53]
[331451487,1720424448153,-888.95,0.00034038,38]
[331451488,1720424448193,-888.95,0.00034038,39]
[331451489,1720424448233,-888.95,0.00034038,40]
[331451490,1720424448273,-888.95,0.00034038,41]
[331451491,1720424448316,-888.95,0.00034038,42]
[331451492,1720424448356,-888.95,0.00034038,43]
[331451493,1720424448396,-888.95,0.00034038,44]
[331451494,1720424448436,-888.95,0.00034038,45]
[331451495,1720424448477,-888.95,0.00034038,46]
[331451496,1720424448517,-888.95,0.00034038,47]
[331451497,1720424448558,-888.95,0.00034038,48]
[331451498,1720424448601,-888.95,0.00034038,49]
[331451499,1720424448642,-888.95,0.00034038,50]
[331451500,1720424448683,-888.95,0.00034038,51]
[331451501,1720424448725,-888.95,0.00034038,52]
[331451502,1720424448767,-889.00554337,0.00034038,53]
[331451503,1720424448811,-1987.76,0.00034038,30]
[331451504,1720424448852,-1987.76,0.00034038,31]
[331451505,1720424448895,-1987.76,0.00034038,32]
[331451506,1720424448936,-524.11885795,0.00034038,30]
[331451507,1720424448977,-1245.48,0.00034038,30]
[331451508,1720424449017,-1245.48,0.00034038,31]
[331451509,1720424449058,-1245.48,0.00034038,32]
[331451510,1720424449100,-1245.48,0.00034038,33]
[331451511,1720424449144,-1245.48,0.00034038,34]
[331451512,1720424449188,-1245.48,0.00034038,35]
[331451513,1720424449231,-1245.48,0.00034038,36]
[331451514,1720424449272,-1245.48,0.00034038,37]
[331451515,1720424449313,-1245.48,0.00034038,38]
[331451516,1720424449353,-1245.48,0.00034038,39]
[331451517,1720424449393,-1245.48,0.00034038,40]
[331451518,1720424449433,-1245.48,0.00034038,41]
[331451519,1720424449473,-1245.48,0.00034038,42]
[331451520,1720424449514,-1245.48,0.00034038,43]
[331451521,1720424449556,-1987.76,0.00034038,33]
[331451522,1720424449597,-1245.48,0.00034038,44]
[331451523,1720424449638,-500.0,0.00034038,30]
[331451524,1720424449676,-1987.76,0.00034038,34]
[331451525,1720424449716,-1245.48,0.00034038,45]
[331451526,1720424449755,-500.0,0.00034038,31]
[331451527,1720424449800,-1987.76,0.00034038,35]
[331451528,1720424449841,-1245.48,0.00034038,46]
[331451529,1720424449884,-500.0,0.00034038,32]
[331451530,1720424449924,-1987.76,0.00034038,36]
[331451531,1720424449963,-1245.48,0.00034038,47]
[331451532,1720424450003,-500.0,0.00034038,33]
[331451533,1720424450046,-1987.76,0.00034038,37]
[331451534,1720424450085,-1245.48,0.00034038,48]
[331451535,1720424450124,-500.0,0.00034038,34]
[331451536,1720424450163,-1987.76,0.00034038,38]
[331451537,1720424450203,-1245.48,0.00034038,49]
[331451538,1720424450244,-1987.76,0.00034038,39]
[331451539,1720424450286,-500.0,0.00034038,35]
[331451540,1720424450326,-1245.48,0.00034038,50]
[331451541,1720424450364,-1987.76,0.00034038,40]
[331451542,1720424450403,-1245.48,0.00034038,51]
[331451543,1720424450442,-1245.48,0.00034038,52]
[331451544,1720424450482,-1245.6549956,0.00034038,53]
[331451545,1720424450519,-1987.76,0.00034038,41]
[331451546,1720424450556,-1987.76,0.00034038,42]
[331451547,1720424450593,-1987.76,0.00034038,43]
[331451548,1720424450629,-1987.76,0.00034038,44]
[331451549,1720424450665,-1987.76,0.00034038,45]
[331451550,1720424450702,-1987.76,0.00034038,46]
[331451551,1720424450740,-1987.76,0.00034038,47]
[331451552,1720424450778,-629.34,0.00034038,30]
[331451553,1720424450816,-500.0,0.00034038,30]
[331451554,1720424450853,-629.34,0.00034038,31]
[331451555,1720424450889,-500.0,0.00034038,31]
[331451556,1720424450926,-1987.76,0.00034038,48]
[331451557,1720424450963,-629.34,0.00034038,32]
[331451558,1720424451000,-500.0,0.00034038,32]
[331451559,1720424451039,-1987.76,0.00034038,49]
[331451560,1720424451076,-629.34,0.00034038,33]
[331451561,1720424451114,-500.0,0.00034038,33]
[331451562,1720424451153,-1987.76,0.00034038,50]
[331451563,1720424451191,-629.34,0.00034038,34]
[331451564,1720424451229,-500.0,0.00034038,34]
[331451565,1720424451267,-1987.76,0.00034038,51]
[331451566,1720424451305,-629.34,0.00034038,35]
[331451567,1720424451342,-1987.76,0.00034038,52]
[331451568,1720424451379,-629.34,0.00034038,36]
[331451569,1720424451416,-500.0,0.00034038,30]
[331451570,1720424451455,-1987.93883791,0.00034038,53]
[331451571,1720424451492,-629.34,0.00034038,37]
[331451572,1720424451533,-500.0,0.00034038,31]
[331451573,1720424451571,-500.0,0.00034038,32]
[331451574,1720424451608,-500.0,0.00034038,33]
[331451575,1720424451646,-500.0,0.00034038,34]
[331451576,1720424451684,-286.26203417,0.00034038,35]
[331451577,1720424451721,-500.0,0.00034038,30]
[331451578,1720424451758,-500.0,0.00034038,30]
[331451579,1720424451796,-500.0,0.00034038,31]
[331451580,1720424451834,-500.0,0.00034038,31]
[331451581,1720424451872,-500.0,0.00034038,32]
[331451582,1720424451908,-500.0,0.00034038,32]
[331451583,1720424451946,-500.0,0.00034038,33]
[331451584,1720424451985,-500.0,0.00034038,33]
[331451585,1720424452022,-500.0,0.00034038,34]
[331451586,1720424452059,-500.0,0.00034038,34]
[331451587,1720424452095,-500.0,0.00034038,35]
[331451588,1720424452371,-500.0,0.00034038,35]
[331451589,1720424452411,-500.0,0.00034038,36]
[331451590,1720424452449,-500.0,0.00034038,30]
[331451591,1720424452489,-500.0,0.00034038,36]
[331451592,1720424452527,-500.0,0.00034038,37]
[331451593,1720424452566,-500.0,0.00034038,31]
[331451594,1720424452604,-500.0,0.00034038,37]
[331451595,1720424452641,-500.0,0.00034038,38]
[331451596,1720424452680,-500.0,0.00034038,38]
[331451597,1720424452718,-500.0,0.00034038,32]
[331451598,1720424452755,-500.0,0.00034038,39]
[331451599,1720424452798,-500.0,0.00034038,39]
[331451600,1720424452841,-500.0,0.00034038,33]
[331451601,1720424452881,-500.0,0.00034038,40]
[331451602,1720424452920,-500.0,0.00034038,40]
[331451603,1720424452960,-500.0,0.00034038,34]
[331451604,1720424453000,-500.0,0.00034038,41]
[331451605,1720424453039,-500.0,0.00034038,41]